{"text_format":"3","workbook":"xlsx","n_sheets":3,"sheets":["Pianificazione giornaliera","Pianificazione eventi","Intervalli di tempo"],"not_rendered":{"images":1,"defined_names":21},"read":"whole","date_system":"1900"}

{"sheet":"Pianificazione giornaliera","index":0,"n_rows":75,"n_cols":13,"rows_kept":75,"merged":[[1,1,5,2],[2,12,4,12],[3,7,4,7],[5,12,7,12],[6,1,8,2],[8,12,10,12],[9,7,10,7],[10,1,10,2],[11,12,13,12],[14,12,16,12],[15,7,16,7],[17,12,19,12],[18,1,18,2],[20,12,22,12],[21,7,22,7],[23,12,25,12],[25,1,25,2],[26,7,27,7],[26,12,28,12],[29,12,31,12],[31,7,32,7],[32,12,34,12]]}
[null,"Pianificazione giornaliera"]
[null,{"$f":"IFERROR(DAY(ValData),\"\")","v":""},null,null,"Ora",{"$f":"IFERROR(UPPER(TEXT(DATE(AnnoReport,NumeroMese,GiornoReport),\"g mmmm aaaa\")),\"\")","v":" SEPTEMBER FRIDAY"},null,"AGENDA DELLA SETTIMANA",{"$nulls":3},"NOTE/DA FARE"]
[{"$nulls":4},{"$f":"'Intervalli di tempo'!E3","v":"06:00:00"},{"$f":"IFERROR(INDEX(PianificazioneEventi[],MATCH(DATEVALUE(ValData)&PianificazioneGiornaliera[[#This Row],[Ora]],CercaDataEOra,0),3),\"\")","v":""},null,{"$f":"IFERROR(TEXT(DATEVALUE(ValData)+1,\"gggg\"),\"\")","v":""},{"$f":"IFERROR(INDEX(PianificazioneEventi[],MATCH($H$6&\"|\"&ROW(A1),PianificazioneEventi[VALORE UNIVOCO (CALCOLATO)],0),2),\"\")","v":""},{"$f":"IFERROR(INDEX(PianificazioneEventi[],MATCH($H$6&\"|\"&ROW(A1),PianificazioneEventi[VALORE UNIVOCO (CALCOLATO)],0),3),\"\")","v":""},null,null,"Ritirare in lavanderia"]
[{"$nulls":4},{"$f":"'Intervalli di tempo'!E4","v":"06:15:00"},{"$f":"IFERROR(INDEX(PianificazioneEventi[],MATCH(DATEVALUE(ValData)&PianificazioneGiornaliera[[#This Row],[Ora]],CercaDataEOra,0),3),\"\")","v":""},null,{"$f":"IFERROR(TEXT(DATEVALUE(ValData)+1,\"g\"),\"\")","v":""},{"$f":"IFERROR(INDEX(PianificazioneEventi[],MATCH($H$6&\"|\"&ROW(A2),PianificazioneEventi[VALORE UNIVOCO (CALCOLATO)],0),2),\"\")","v":""},{"$f":"IFERROR(INDEX(PianificazioneEventi[],MATCH($H$6&\"|\"&ROW(A2),PianificazioneEventi[VALORE UNIVOCO (CALCOLATO)],0),3),\"\")","v":""}]
[{"$nulls":4},{"$f":"'Intervalli di tempo'!E5","v":"06:30:00"},{"$f":"IFERROR(INDEX(PianificazioneEventi[],MATCH(DATEVALUE(ValData)&PianificazioneGiornaliera[[#This Row],[Ora]],CercaDataEOra,0),3),\"\")","v":""},null,null,{"$f":"IFERROR(INDEX(PianificazioneEventi[],MATCH($H$6&\"|\"&ROW(A3),PianificazioneEventi[VALORE UNIVOCO (CALCOLATO)],0),2),\"\")","v":""},{"$f":"IFERROR(INDEX(PianificazioneEventi[],MATCH($H$6&\"|\"&ROW(A3),PianificazioneEventi[VALORE UNIVOCO (CALCOLATO)],0),3),\"\")","v":""}]
[{"$nulls":4},{"$f":"'Intervalli di tempo'!E6","v":"06:45:00"},{"$f":"IFERROR(INDEX(PianificazioneEventi[],MATCH(DATEVALUE(ValData)&PianificazioneGiornaliera[[#This Row],[Ora]],CercaDataEOra,0),3),\"\")","v":""},null,{"$f":"IFERROR(ValData+1,\"\")","v":""},{"$f":"IFERROR(INDEX(PianificazioneEventi[],MATCH($H$6&\"|\"&ROW(A4),PianificazioneEventi[VALORE UNIVOCO (CALCOLATO)],0),2),\"\")","v":""},{"$f":"IFERROR(INDEX(PianificazioneEventi[],MATCH($H$6&\"|\"&ROW(A4),PianificazioneEventi[VALORE UNIVOCO (CALCOLATO)],0),3),\"\")","v":""},null,null,"Chiamare per TV via cavo"]
[null,{"$f":"IFERROR(TEXT(ValData,\"gggg\"),\"\")","v":" SEPTEMBER FRIDAY"},null,null,{"$f":"'Intervalli di tempo'!E7","v":"07:00:00"},{"$f":"IFERROR(INDEX(PianificazioneEventi[],MATCH(DATEVALUE(ValData)&PianificazioneGiornaliera[[#This Row],[Ora]],CercaDataEOra,0),3),\"\")","v":""},null,null,{"$f":"IFERROR(INDEX(PianificazioneEventi[],MATCH($H$6&\"|\"&ROW(A5),PianificazioneEventi[VALORE UNIVOCO (CALCOLATO)],0),2),\"\")","v":""},{"$f":"IFERROR(INDEX(PianificazioneEventi[],MATCH($H$6&\"|\"&ROW(A5),PianificazioneEventi[VALORE UNIVOCO (CALCOLATO)],0),3),\"\")","v":""}]
[{"$nulls":4},{"$f":"'Intervalli di tempo'!E8","v":"07:15:00"},{"$f":"IFERROR(INDEX(PianificazioneEventi[],MATCH(DATEVALUE(ValData)&PianificazioneGiornaliera[[#This Row],[Ora]],CercaDataEOra,0),3),\"\")","v":""},null,null,{"$f":"IFERROR(INDEX(PianificazioneEventi[],MATCH($H$6&\"|\"&ROW(A6),PianificazioneEventi[VALORE UNIVOCO (CALCOLATO)],0),2),\"\")","v":""},{"$f":"IFERROR(INDEX(PianificazioneEventi[],MATCH($H$6&\"|\"&ROW(A6),PianificazioneEventi[VALORE UNIVOCO (CALCOLATO)],0),3),\"\")","v":""}]
[{"$nulls":4},{"$f":"'Intervalli di tempo'!E9","v":"07:30:00"},{"$f":"IFERROR(INDEX(PianificazioneEventi[],MATCH(DATEVALUE(ValData)&PianificazioneGiornaliera[[#This Row],[Ora]],CercaDataEOra,0),3),\"\")","v":""},null,{"$f":"IFERROR(TEXT(DATEVALUE(ValData)+2,\"gggg\"),\"\")","v":""},{"$f":"IFERROR(INDEX(PianificazioneEventi[],MATCH($H$12&\"|\"&ROW(A1),PianificazioneEventi[VALORE UNIVOCO (CALCOLATO)],0),2),\"\")","v":""},{"$f":"IFERROR(INDEX(PianificazioneEventi[],MATCH($H$12&\"|\"&ROW(A1),PianificazioneEventi[VALORE UNIVOCO (CALCOLATO)],0),3),\"\")","v":""}]
[{"$nulls":4},{"$f":"'Intervalli di tempo'!E10","v":"07:45:00"},{"$f":"IFERROR(INDEX(PianificazioneEventi[],MATCH(DATEVALUE(ValData)&PianificazioneGiornaliera[[#This Row],[Ora]],CercaDataEOra,0),3),\"\")","v":""},null,{"$f":"IFERROR(TEXT(DATEVALUE(ValData)+2,\"g\"),\"\")","v":""},{"$f":"IFERROR(INDEX(PianificazioneEventi[],MATCH($H$12&\"|\"&ROW(A2),PianificazioneEventi[VALORE UNIVOCO (CALCOLATO)],0),2),\"\")","v":""},{"$f":"IFERROR(INDEX(PianificazioneEventi[],MATCH($H$12&\"|\"&ROW(A2),PianificazioneEventi[VALORE UNIVOCO (CALCOLATO)],0),3),\"\")","v":""}]
[null,"VISUALIZZA PIANIFICAZIONE",null,null,{"$f":"'Intervalli di tempo'!E11","v":"08:00:00"},{"$f":"IFERROR(INDEX(PianificazioneEventi[],MATCH(DATEVALUE(ValData)&PianificazioneGiornaliera[[#This Row],[Ora]],CercaDataEOra,0),3),\"\")","v":""},null,null,{"$f":"IFERROR(INDEX(PianificazioneEventi[],MATCH($H$12&\"|\"&ROW(A3),PianificazioneEventi[VALORE UNIVOCO (CALCOLATO)],0),2),\"\")","v":""},{"$f":"IFERROR(INDEX(PianificazioneEventi[],MATCH($H$12&\"|\"&ROW(A3),PianificazioneEventi[VALORE UNIVOCO (CALCOLATO)],0),3),\"\")","v":""}]
[{"$nulls":4},{"$f":"'Intervalli di tempo'!E12","v":"08:15:00"},{"$f":"IFERROR(INDEX(PianificazioneEventi[],MATCH(DATEVALUE(ValData)&PianificazioneGiornaliera[[#This Row],[Ora]],CercaDataEOra,0),3),\"\")","v":""},null,{"$f":"IFERROR(ValData+2,\"\")","v":""},{"$f":"IFERROR(INDEX(PianificazioneEventi[],MATCH($H$12&\"|\"&ROW(A4),PianificazioneEventi[VALORE UNIVOCO (CALCOLATO)],0),2),\"\")","v":""},{"$f":"IFERROR(INDEX(PianificazioneEventi[],MATCH($H$12&\"|\"&ROW(A4),PianificazioneEventi[VALORE UNIVOCO (CALCOLATO)],0),3),\"\")","v":""}]
[null,"Anno",null,null,{"$f":"'Intervalli di tempo'!E13","v":"08:30:00"},{"$f":"IFERROR(INDEX(PianificazioneEventi[],MATCH(DATEVALUE(ValData)&PianificazioneGiornaliera[[#This Row],[Ora]],CercaDataEOra,0),3),\"\")","v":""},null,null,{"$f":"IFERROR(INDEX(PianificazioneEventi[],MATCH($H$12&\"|\"&ROW(A5),PianificazioneEventi[VALORE UNIVOCO (CALCOLATO)],0),2),\"\")","v":""},{"$f":"IFERROR(INDEX(PianificazioneEventi[],MATCH($H$12&\"|\"&ROW(A5),PianificazioneEventi[VALORE UNIVOCO (CALCOLATO)],0),3),\"\")","v":""}]
[{"$nulls":4},{"$f":"'Intervalli di tempo'!E14","v":"08:45:00"},{"$f":"IFERROR(INDEX(PianificazioneEventi[],MATCH(DATEVALUE(ValData)&PianificazioneGiornaliera[[#This Row],[Ora]],CercaDataEOra,0),3),\"\")","v":""},null,null,{"$f":"IFERROR(INDEX(PianificazioneEventi[],MATCH($H$12&\"|\"&ROW(A6),PianificazioneEventi[VALORE UNIVOCO (CALCOLATO)],0),2),\"\")","v":""},{"$f":"IFERROR(INDEX(PianificazioneEventi[],MATCH($H$12&\"|\"&ROW(A6),PianificazioneEventi[VALORE UNIVOCO (CALCOLATO)],0),3),\"\")","v":""}]
[null,"Mese",null,null,{"$f":"'Intervalli di tempo'!E15","v":"09:00:00"},{"$f":"IFERROR(INDEX(PianificazioneEventi[],MATCH(DATEVALUE(ValData)&PianificazioneGiornaliera[[#This Row],[Ora]],CercaDataEOra,0),3),\"\")","v":""},null,{"$f":"IFERROR(TEXT(DATEVALUE(ValData)+3,\"gggg\"),\"\")","v":""},{"$f":"IFERROR(INDEX(PianificazioneEventi[],MATCH($H$18&\"|\"&ROW(A1),PianificazioneEventi[VALORE UNIVOCO (CALCOLATO)],0),2),\"\")","v":""},{"$f":"IFERROR(INDEX(PianificazioneEventi[],MATCH($H$18&\"|\"&ROW(A1),PianificazioneEventi[VALORE UNIVOCO (CALCOLATO)],0),3),\"\")","v":""}]
[{"$nulls":4},{"$f":"'Intervalli di tempo'!E16","v":"09:15:00"},{"$f":"IFERROR(INDEX(PianificazioneEventi[],MATCH(DATEVALUE(ValData)&PianificazioneGiornaliera[[#This Row],[Ora]],CercaDataEOra,0),3),\"\")","v":""},null,{"$f":"IFERROR(TEXT(DATEVALUE(ValData)+3,\"g\"),\"\")","v":""},{"$f":"IFERROR(INDEX(PianificazioneEventi[],MATCH($H$18&\"|\"&ROW(A2),PianificazioneEventi[VALORE UNIVOCO (CALCOLATO)],0),2),\"\")","v":""},{"$f":"IFERROR(INDEX(PianificazioneEventi[],MATCH($H$18&\"|\"&ROW(A2),PianificazioneEventi[VALORE UNIVOCO (CALCOLATO)],0),3),\"\")","v":""}]
[null,"Giorno",null,null,{"$f":"'Intervalli di tempo'!E17","v":"09:30:00"},{"$f":"IFERROR(INDEX(PianificazioneEventi[],MATCH(DATEVALUE(ValData)&PianificazioneGiornaliera[[#This Row],[Ora]],CercaDataEOra,0),3),\"\")","v":""},null,null,{"$f":"IFERROR(INDEX(PianificazioneEventi[],MATCH($H$18&\"|\"&ROW(A3),PianificazioneEventi[VALORE UNIVOCO (CALCOLATO)],0),2),\"\")","v":""},{"$f":"IFERROR(INDEX(PianificazioneEventi[],MATCH($H$18&\"|\"&ROW(A3),PianificazioneEventi[VALORE UNIVOCO (CALCOLATO)],0),3),\"\")","v":""}]
[{"$nulls":4},{"$f":"'Intervalli di tempo'!E18","v":"09:45:00"},{"$f":"IFERROR(INDEX(PianificazioneEventi[],MATCH(DATEVALUE(ValData)&PianificazioneGiornaliera[[#This Row],[Ora]],CercaDataEOra,0),3),\"\")","v":""},null,{"$f":"IFERROR(ValData+3,\"\")","v":""},{"$f":"IFERROR(INDEX(PianificazioneEventi[],MATCH($H$18&\"|\"&ROW(A4),PianificazioneEventi[VALORE UNIVOCO (CALCOLATO)],0),2),\"\")","v":""},{"$f":"IFERROR(INDEX(PianificazioneEventi[],MATCH($H$18&\"|\"&ROW(A4),PianificazioneEventi[VALORE UNIVOCO (CALCOLATO)],0),3),\"\")","v":""}]
[null,"MODIFICA PIANIFICAZIONE",null,null,{"$f":"'Intervalli di tempo'!E19","v":"10:00:00"},{"$f":"IFERROR(INDEX(PianificazioneEventi[],MATCH(DATEVALUE(ValData)&PianificazioneGiornaliera[[#This Row],[Ora]],CercaDataEOra,0),3),\"\")","v":""},null,null,{"$f":"IFERROR(INDEX(PianificazioneEventi[],MATCH($H$18&\"|\"&ROW(A5),PianificazioneEventi[VALORE UNIVOCO (CALCOLATO)],0),2),\"\")","v":""},{"$f":"IFERROR(INDEX(PianificazioneEventi[],MATCH($H$18&\"|\"&ROW(A5),PianificazioneEventi[VALORE UNIVOCO (CALCOLATO)],0),3),\"\")","v":""}]
[{"$nulls":4},{"$f":"'Intervalli di tempo'!E20","v":"10:15:00"},{"$f":"IFERROR(INDEX(PianificazioneEventi[],MATCH(DATEVALUE(ValData)&PianificazioneGiornaliera[[#This Row],[Ora]],CercaDataEOra,0),3),\"\")","v":""},null,null,{"$f":"IFERROR(INDEX(PianificazioneEventi[],MATCH($H$18&\"|\"&ROW(A6),PianificazioneEventi[VALORE UNIVOCO (CALCOLATO)],0),2),\"\")","v":""},{"$f":"IFERROR(INDEX(PianificazioneEventi[],MATCH($H$18&\"|\"&ROW(A6),PianificazioneEventi[VALORE UNIVOCO (CALCOLATO)],0),3),\"\")","v":""}]
[null,"Selezionare per modificare gli intervalli di tempo",null,null,{"$f":"'Intervalli di tempo'!E21","v":"10:30:00"},{"$f":"IFERROR(INDEX(PianificazioneEventi[],MATCH(DATEVALUE(ValData)&PianificazioneGiornaliera[[#This Row],[Ora]],CercaDataEOra,0),3),\"\")","v":""},null,{"$f":"IFERROR(TEXT(DATEVALUE(ValData)+4,\"gggg\"),\"\")","v":""},{"$f":"IFERROR(INDEX(PianificazioneEventi[],MATCH($H$24&\"|\"&ROW(A1),PianificazioneEventi[VALORE UNIVOCO (CALCOLATO)],0),2),\"\")","v":""},{"$f":"IFERROR(INDEX(PianificazioneEventi[],MATCH($H$24&\"|\"&ROW(A1),PianificazioneEventi[VALORE UNIVOCO (CALCOLATO)],0),3),\"\")","v":""}]
[{"$nulls":4},{"$f":"'Intervalli di tempo'!E22","v":"10:45:00"},{"$f":"IFERROR(INDEX(PianificazioneEventi[],MATCH(DATEVALUE(ValData)&PianificazioneGiornaliera[[#This Row],[Ora]],CercaDataEOra,0),3),\"\")","v":""},null,{"$f":"IFERROR(TEXT(DATEVALUE(ValData)+4,\"g\"),\"\")","v":""},{"$f":"IFERROR(INDEX(PianificazioneEventi[],MATCH($H$24&\"|\"&ROW(A2),PianificazioneEventi[VALORE UNIVOCO (CALCOLATO)],0),2),\"\")","v":""},{"$f":"IFERROR(INDEX(PianificazioneEventi[],MATCH($H$24&\"|\"&ROW(A2),PianificazioneEventi[VALORE UNIVOCO (CALCOLATO)],0),3),\"\")","v":""}]
[null,"Selezionare per aggiungere un nuovo evento",null,null,{"$f":"'Intervalli di tempo'!E23","v":"11:00:00"},{"$f":"IFERROR(INDEX(PianificazioneEventi[],MATCH(DATEVALUE(ValData)&PianificazioneGiornaliera[[#This Row],[Ora]],CercaDataEOra,0),3),\"\")","v":""},null,null,{"$f":"IFERROR(INDEX(PianificazioneEventi[],MATCH($H$24&\"|\"&ROW(A3),PianificazioneEventi[VALORE UNIVOCO (CALCOLATO)],0),2),\"\")","v":""},{"$f":"IFERROR(INDEX(PianificazioneEventi[],MATCH($H$24&\"|\"&ROW(A3),PianificazioneEventi[VALORE UNIVOCO (CALCOLATO)],0),3),\"\")","v":""}]
[{"$nulls":4},{"$f":"'Intervalli di tempo'!E24","v":"11:15:00"},{"$f":"IFERROR(INDEX(PianificazioneEventi[],MATCH(DATEVALUE(ValData)&PianificazioneGiornaliera[[#This Row],[Ora]],CercaDataEOra,0),3),\"\")","v":""},null,{"$f":"IFERROR(ValData+4,\"\")","v":""},{"$f":"IFERROR(INDEX(PianificazioneEventi[],MATCH($H$24&\"|\"&ROW(A4),PianificazioneEventi[VALORE UNIVOCO (CALCOLATO)],0),2),\"\")","v":""},{"$f":"IFERROR(INDEX(PianificazioneEventi[],MATCH($H$24&\"|\"&ROW(A4),PianificazioneEventi[VALORE UNIVOCO (CALCOLATO)],0),3),\"\")","v":""}]
[null,"EVIDENZIA IN PIANIFICAZIONE:",null,null,{"$f":"'Intervalli di tempo'!E25","v":"11:30:00"},{"$f":"IFERROR(INDEX(PianificazioneEventi[],MATCH(DATEVALUE(ValData)&PianificazioneGiornaliera[[#This Row],[Ora]],CercaDataEOra,0),3),\"\")","v":""},null,null,{"$f":"IFERROR(INDEX(PianificazioneEventi[],MATCH($H$24&\"|\"&ROW(A5),PianificazioneEventi[VALORE UNIVOCO (CALCOLATO)],0),2),\"\")","v":""},{"$f":"IFERROR(INDEX(PianificazioneEventi[],MATCH($H$24&\"|\"&ROW(A5),PianificazioneEventi[VALORE UNIVOCO (CALCOLATO)],0),3),\"\")","v":""}]
[null,"Pausa",null,null,{"$f":"'Intervalli di tempo'!E26","v":"11:45:00"},{"$f":"IFERROR(INDEX(PianificazioneEventi[],MATCH(DATEVALUE(ValData)&PianificazioneGiornaliera[[#This Row],[Ora]],CercaDataEOra,0),3),\"\")","v":""},null,{"$f":"IFERROR(TEXT(DATEVALUE(ValData)+5,\"gggg\"),\"\")","v":""},{"$f":"IFERROR(INDEX(PianificazioneEventi[],MATCH($H$29&\"|\"&ROW(A1),PianificazioneEventi[VALORE UNIVOCO (CALCOLATO)],0),2),\"\")","v":""},{"$f":"IFERROR(INDEX(PianificazioneEventi[],MATCH($H$29&\"|\"&ROW(A1),PianificazioneEventi[VALORE UNIVOCO (CALCOLATO)],0),3),\"\")","v":""}]
[{"$nulls":4},{"$f":"'Intervalli di tempo'!E27","v":"12:00:00"},{"$f":"IFERROR(INDEX(PianificazioneEventi[],MATCH(DATEVALUE(ValData)&PianificazioneGiornaliera[[#This Row],[Ora]],CercaDataEOra,0),3),\"\")","v":""},null,{"$f":"IFERROR(TEXT(DATEVALUE(ValData)+5,\"g\"),\"\")","v":""},{"$f":"IFERROR(INDEX(PianificazioneEventi[],MATCH($H$29&\"|\"&ROW(A2),PianificazioneEventi[VALORE UNIVOCO (CALCOLATO)],0),2),\"\")","v":""},{"$f":"IFERROR(INDEX(PianificazioneEventi[],MATCH($H$29&\"|\"&ROW(A2),PianificazioneEventi[VALORE UNIVOCO (CALCOLATO)],0),3),\"\")","v":""}]
[{"$nulls":4},{"$f":"'Intervalli di tempo'!E28","v":"12:15:00"},{"$f":"IFERROR(INDEX(PianificazioneEventi[],MATCH(DATEVALUE(ValData)&PianificazioneGiornaliera[[#This Row],[Ora]],CercaDataEOra,0),3),\"\")","v":""},null,null,{"$f":"IFERROR(INDEX(PianificazioneEventi[],MATCH($H$29&\"|\"&ROW(A3),PianificazioneEventi[VALORE UNIVOCO (CALCOLATO)],0),2),\"\")","v":""},{"$f":"IFERROR(INDEX(PianificazioneEventi[],MATCH($H$29&\"|\"&ROW(A3),PianificazioneEventi[VALORE UNIVOCO (CALCOLATO)],0),3),\"\")","v":""}]
[{"$nulls":4},{"$f":"'Intervalli di tempo'!E29","v":"12:30:00"},{"$f":"IFERROR(INDEX(PianificazioneEventi[],MATCH(DATEVALUE(ValData)&PianificazioneGiornaliera[[#This Row],[Ora]],CercaDataEOra,0),3),\"\")","v":""},null,{"$f":"IFERROR(ValData+5,\"\")","v":""},{"$f":"IFERROR(INDEX(PianificazioneEventi[],MATCH($H$29&\"|\"&ROW(A4),PianificazioneEventi[VALORE UNIVOCO (CALCOLATO)],0),2),\"\")","v":""},{"$f":"IFERROR(INDEX(PianificazioneEventi[],MATCH($H$29&\"|\"&ROW(A4),PianificazioneEventi[VALORE UNIVOCO (CALCOLATO)],0),3),\"\")","v":""}]
[{"$nulls":4},{"$f":"'Intervalli di tempo'!E30","v":"12:45:00"},{"$f":"IFERROR(INDEX(PianificazioneEventi[],MATCH(DATEVALUE(ValData)&PianificazioneGiornaliera[[#This Row],[Ora]],CercaDataEOra,0),3),\"\")","v":""},null,null,{"$f":"IFERROR(INDEX(PianificazioneEventi[],MATCH($H$29&\"|\"&ROW(A5),PianificazioneEventi[VALORE UNIVOCO (CALCOLATO)],0),2),\"\")","v":""},{"$f":"IFERROR(INDEX(PianificazioneEventi[],MATCH($H$29&\"|\"&ROW(A5),PianificazioneEventi[VALORE UNIVOCO (CALCOLATO)],0),3),\"\")","v":""}]
[{"$nulls":4},{"$f":"'Intervalli di tempo'!E31","v":"13:00:00"},{"$f":"IFERROR(INDEX(PianificazioneEventi[],MATCH(DATEVALUE(ValData)&PianificazioneGiornaliera[[#This Row],[Ora]],CercaDataEOra,0),3),\"\")","v":""},null,{"$f":"IFERROR(TEXT(DATEVALUE(ValData)+6,\"gggg\"),\"\")","v":""},{"$f":"IFERROR(INDEX(PianificazioneEventi[],MATCH($H$34&\"|\"&ROW(A1),PianificazioneEventi[VALORE UNIVOCO (CALCOLATO)],0),2),\"\")","v":""},{"$f":"IFERROR(INDEX(PianificazioneEventi[],MATCH($H$34&\"|\"&ROW(A1),PianificazioneEventi[VALORE UNIVOCO (CALCOLATO)],0),3),\"\")","v":""}]
[{"$nulls":4},{"$f":"'Intervalli di tempo'!E32","v":"13:15:00"},{"$f":"IFERROR(INDEX(PianificazioneEventi[],MATCH(DATEVALUE(ValData)&PianificazioneGiornaliera[[#This Row],[Ora]],CercaDataEOra,0),3),\"\")","v":""},null,{"$f":"IFERROR(TEXT(DATEVALUE(ValData)+6,\"g\"),\"\")","v":""},{"$f":"IFERROR(INDEX(PianificazioneEventi[],MATCH($H$34&\"|\"&ROW(A2),PianificazioneEventi[VALORE UNIVOCO (CALCOLATO)],0),2),\"\")","v":""},{"$f":"IFERROR(INDEX(PianificazioneEventi[],MATCH($H$34&\"|\"&ROW(A2),PianificazioneEventi[VALORE UNIVOCO (CALCOLATO)],0),3),\"\")","v":""}]
[{"$nulls":4},{"$f":"'Intervalli di tempo'!E33","v":"13:30:00"},{"$f":"IFERROR(INDEX(PianificazioneEventi[],MATCH(DATEVALUE(ValData)&PianificazioneGiornaliera[[#This Row],[Ora]],CercaDataEOra,0),3),\"\")","v":""},null,null,{"$f":"IFERROR(INDEX(PianificazioneEventi[],MATCH($H$34&\"|\"&ROW(A3),PianificazioneEventi[VALORE UNIVOCO (CALCOLATO)],0),2),\"\")","v":""},{"$f":"IFERROR(INDEX(PianificazioneEventi[],MATCH($H$34&\"|\"&ROW(A3),PianificazioneEventi[VALORE UNIVOCO (CALCOLATO)],0),3),\"\")","v":""}]
[{"$nulls":4},{"$f":"'Intervalli di tempo'!E34","v":"13:45:00"},{"$f":"IFERROR(INDEX(PianificazioneEventi[],MATCH(DATEVALUE(ValData)&PianificazioneGiornaliera[[#This Row],[Ora]],CercaDataEOra,0),3),\"\")","v":""},null,{"$f":"IFERROR(ValData+6,\"\")","v":""},{"$f":"IFERROR(INDEX(PianificazioneEventi[],MATCH($H$34&\"|\"&ROW(A4),PianificazioneEventi[VALORE UNIVOCO (CALCOLATO)],0),2),\"\")","v":""},{"$f":"IFERROR(INDEX(PianificazioneEventi[],MATCH($H$34&\"|\"&ROW(A4),PianificazioneEventi[VALORE UNIVOCO (CALCOLATO)],0),3),\"\")","v":""}]
[{"$nulls":4},{"$f":"'Intervalli di tempo'!E35","v":"14:00:00"},{"$f":"IFERROR(INDEX(PianificazioneEventi[],MATCH(DATEVALUE(ValData)&PianificazioneGiornaliera[[#This Row],[Ora]],CercaDataEOra,0),3),\"\")","v":""},null,null,{"$f":"IFERROR(INDEX(PianificazioneEventi[],MATCH($H$34&\"|\"&ROW(A5),PianificazioneEventi[VALORE UNIVOCO (CALCOLATO)],0),2),\"\")","v":""},{"$f":"IFERROR(INDEX(PianificazioneEventi[],MATCH($H$34&\"|\"&ROW(A5),PianificazioneEventi[VALORE UNIVOCO (CALCOLATO)],0),3),\"\")","v":""}]
[{"$nulls":4},{"$f":"'Intervalli di tempo'!E36","v":"14:15:00"},{"$f":"IFERROR(INDEX(PianificazioneEventi[],MATCH(DATEVALUE(ValData)&PianificazioneGiornaliera[[#This Row],[Ora]],CercaDataEOra,0),3),\"\")","v":""}]
[{"$nulls":4},{"$f":"'Intervalli di tempo'!E37","v":"14:30:00"},{"$f":"IFERROR(INDEX(PianificazioneEventi[],MATCH(DATEVALUE(ValData)&PianificazioneGiornaliera[[#This Row],[Ora]],CercaDataEOra,0),3),\"\")","v":""}]
[{"$nulls":4},{"$f":"'Intervalli di tempo'!E38","v":"14:45:00"},{"$f":"IFERROR(INDEX(PianificazioneEventi[],MATCH(DATEVALUE(ValData)&PianificazioneGiornaliera[[#This Row],[Ora]],CercaDataEOra,0),3),\"\")","v":""}]
[{"$nulls":4},{"$f":"'Intervalli di tempo'!E39","v":"15:00:00"},{"$f":"IFERROR(INDEX(PianificazioneEventi[],MATCH(DATEVALUE(ValData)&PianificazioneGiornaliera[[#This Row],[Ora]],CercaDataEOra,0),3),\"\")","v":""}]
[{"$nulls":4},{"$f":"'Intervalli di tempo'!E40","v":"15:15:00"},{"$f":"IFERROR(INDEX(PianificazioneEventi[],MATCH(DATEVALUE(ValData)&PianificazioneGiornaliera[[#This Row],[Ora]],CercaDataEOra,0),3),\"\")","v":""}]
[{"$nulls":4},{"$f":"'Intervalli di tempo'!E41","v":"15:30:00"},{"$f":"IFERROR(INDEX(PianificazioneEventi[],MATCH(DATEVALUE(ValData)&PianificazioneGiornaliera[[#This Row],[Ora]],CercaDataEOra,0),3),\"\")","v":""}]
[{"$nulls":4},{"$f":"'Intervalli di tempo'!E42","v":"15:45:00"},{"$f":"IFERROR(INDEX(PianificazioneEventi[],MATCH(DATEVALUE(ValData)&PianificazioneGiornaliera[[#This Row],[Ora]],CercaDataEOra,0),3),\"\")","v":""}]
[{"$nulls":4},{"$f":"'Intervalli di tempo'!E43","v":"16:00:00"},{"$f":"IFERROR(INDEX(PianificazioneEventi[],MATCH(DATEVALUE(ValData)&PianificazioneGiornaliera[[#This Row],[Ora]],CercaDataEOra,0),3),\"\")","v":""}]
[{"$nulls":4},{"$f":"'Intervalli di tempo'!E44","v":"16:15:00"},{"$f":"IFERROR(INDEX(PianificazioneEventi[],MATCH(DATEVALUE(ValData)&PianificazioneGiornaliera[[#This Row],[Ora]],CercaDataEOra,0),3),\"\")","v":""}]
[{"$nulls":4},{"$f":"'Intervalli di tempo'!E45","v":"16:30:00"},{"$f":"IFERROR(INDEX(PianificazioneEventi[],MATCH(DATEVALUE(ValData)&PianificazioneGiornaliera[[#This Row],[Ora]],CercaDataEOra,0),3),\"\")","v":""}]
[{"$nulls":4},{"$f":"'Intervalli di tempo'!E46","v":"16:45:00"},{"$f":"IFERROR(INDEX(PianificazioneEventi[],MATCH(DATEVALUE(ValData)&PianificazioneGiornaliera[[#This Row],[Ora]],CercaDataEOra,0),3),\"\")","v":""}]
[{"$nulls":4},{"$f":"'Intervalli di tempo'!E47","v":"17:00:00"},{"$f":"IFERROR(INDEX(PianificazioneEventi[],MATCH(DATEVALUE(ValData)&PianificazioneGiornaliera[[#This Row],[Ora]],CercaDataEOra,0),3),\"\")","v":""}]
[{"$nulls":4},{"$f":"'Intervalli di tempo'!E48","v":"17:15:00"},{"$f":"IFERROR(INDEX(PianificazioneEventi[],MATCH(DATEVALUE(ValData)&PianificazioneGiornaliera[[#This Row],[Ora]],CercaDataEOra,0),3),\"\")","v":""}]
[{"$nulls":4},{"$f":"'Intervalli di tempo'!E49","v":"17:30:00"},{"$f":"IFERROR(INDEX(PianificazioneEventi[],MATCH(DATEVALUE(ValData)&PianificazioneGiornaliera[[#This Row],[Ora]],CercaDataEOra,0),3),\"\")","v":""}]
[{"$nulls":4},{"$f":"'Intervalli di tempo'!E50","v":"17:45:00"},{"$f":"IFERROR(INDEX(PianificazioneEventi[],MATCH(DATEVALUE(ValData)&PianificazioneGiornaliera[[#This Row],[Ora]],CercaDataEOra,0),3),\"\")","v":""}]
[{"$nulls":4},{"$f":"'Intervalli di tempo'!E51","v":"18:00:00"},{"$f":"IFERROR(INDEX(PianificazioneEventi[],MATCH(DATEVALUE(ValData)&PianificazioneGiornaliera[[#This Row],[Ora]],CercaDataEOra,0),3),\"\")","v":""}]
[{"$nulls":4},{"$f":"'Intervalli di tempo'!E52","v":"18:15:00"},{"$f":"IFERROR(INDEX(PianificazioneEventi[],MATCH(DATEVALUE(ValData)&PianificazioneGiornaliera[[#This Row],[Ora]],CercaDataEOra,0),3),\"\")","v":""}]
[{"$nulls":4},{"$f":"'Intervalli di tempo'!E53","v":"18:30:00"},{"$f":"IFERROR(INDEX(PianificazioneEventi[],MATCH(DATEVALUE(ValData)&PianificazioneGiornaliera[[#This Row],[Ora]],CercaDataEOra,0),3),\"\")","v":""}]
[{"$nulls":4},{"$f":"'Intervalli di tempo'!E54","v":"18:45:00"},{"$f":"IFERROR(INDEX(PianificazioneEventi[],MATCH(DATEVALUE(ValData)&PianificazioneGiornaliera[[#This Row],[Ora]],CercaDataEOra,0),3),\"\")","v":""}]
[{"$nulls":4},{"$f":"'Intervalli di tempo'!E55","v":"19:00:00"},{"$f":"IFERROR(INDEX(PianificazioneEventi[],MATCH(DATEVALUE(ValData)&PianificazioneGiornaliera[[#This Row],[Ora]],CercaDataEOra,0),3),\"\")","v":""}]
[{"$nulls":4},{"$f":"'Intervalli di tempo'!E56","v":"19:15:00"},{"$f":"IFERROR(INDEX(PianificazioneEventi[],MATCH(DATEVALUE(ValData)&PianificazioneGiornaliera[[#This Row],[Ora]],CercaDataEOra,0),3),\"\")","v":""}]
[{"$nulls":4},{"$f":"'Intervalli di tempo'!E57","v":"19:30:00"},{"$f":"IFERROR(INDEX(PianificazioneEventi[],MATCH(DATEVALUE(ValData)&PianificazioneGiornaliera[[#This Row],[Ora]],CercaDataEOra,0),3),\"\")","v":""}]
[{"$nulls":4},{"$f":"'Intervalli di tempo'!E58","v":"19:45:00"},{"$f":"IFERROR(INDEX(PianificazioneEventi[],MATCH(DATEVALUE(ValData)&PianificazioneGiornaliera[[#This Row],[Ora]],CercaDataEOra,0),3),\"\")","v":""}]
[{"$nulls":4},{"$f":"'Intervalli di tempo'!E59","v":"20:00:00"},{"$f":"IFERROR(INDEX(PianificazioneEventi[],MATCH(DATEVALUE(ValData)&PianificazioneGiornaliera[[#This Row],[Ora]],CercaDataEOra,0),3),\"\")","v":""}]
[{"$nulls":4},{"$f":"'Intervalli di tempo'!E60","v":"20:15:00"},{"$f":"IFERROR(INDEX(PianificazioneEventi[],MATCH(DATEVALUE(ValData)&PianificazioneGiornaliera[[#This Row],[Ora]],CercaDataEOra,0),3),\"\")","v":""}]
[{"$nulls":4},{"$f":"'Intervalli di tempo'!E61","v":"20:30:00"},{"$f":"IFERROR(INDEX(PianificazioneEventi[],MATCH(DATEVALUE(ValData)&PianificazioneGiornaliera[[#This Row],[Ora]],CercaDataEOra,0),3),\"\")","v":""}]
[{"$nulls":4},{"$f":"'Intervalli di tempo'!E62","v":"20:45:00"},{"$f":"IFERROR(INDEX(PianificazioneEventi[],MATCH(DATEVALUE(ValData)&PianificazioneGiornaliera[[#This Row],[Ora]],CercaDataEOra,0),3),\"\")","v":""}]
[{"$nulls":4},{"$f":"'Intervalli di tempo'!E63","v":"21:00:00"},{"$f":"IFERROR(INDEX(PianificazioneEventi[],MATCH(DATEVALUE(ValData)&PianificazioneGiornaliera[[#This Row],[Ora]],CercaDataEOra,0),3),\"\")","v":""}]
[{"$nulls":4},{"$f":"'Intervalli di tempo'!E64","v":""},{"$f":"IFERROR(INDEX(PianificazioneEventi[],MATCH(DATEVALUE(ValData)&PianificazioneGiornaliera[[#This Row],[Ora]],CercaDataEOra,0),3),\"\")","v":""}]
[{"$nulls":4},{"$f":"'Intervalli di tempo'!E65","v":""},{"$f":"IFERROR(INDEX(PianificazioneEventi[],MATCH(DATEVALUE(ValData)&PianificazioneGiornaliera[[#This Row],[Ora]],CercaDataEOra,0),3),\"\")","v":""}]
[{"$nulls":4},{"$f":"'Intervalli di tempo'!E66","v":""},{"$f":"IFERROR(INDEX(PianificazioneEventi[],MATCH(DATEVALUE(ValData)&PianificazioneGiornaliera[[#This Row],[Ora]],CercaDataEOra,0),3),\"\")","v":""}]
[{"$nulls":4},{"$f":"'Intervalli di tempo'!E67","v":""},{"$f":"IFERROR(INDEX(PianificazioneEventi[],MATCH(DATEVALUE(ValData)&PianificazioneGiornaliera[[#This Row],[Ora]],CercaDataEOra,0),3),\"\")","v":""}]
[{"$nulls":4},{"$f":"'Intervalli di tempo'!E68","v":""},{"$f":"IFERROR(INDEX(PianificazioneEventi[],MATCH(DATEVALUE(ValData)&PianificazioneGiornaliera[[#This Row],[Ora]],CercaDataEOra,0),3),\"\")","v":""}]
[{"$nulls":4},{"$f":"'Intervalli di tempo'!E69","v":""},{"$f":"IFERROR(INDEX(PianificazioneEventi[],MATCH(DATEVALUE(ValData)&PianificazioneGiornaliera[[#This Row],[Ora]],CercaDataEOra,0),3),\"\")","v":""}]
[{"$nulls":4},{"$f":"'Intervalli di tempo'!E70","v":""},{"$f":"IFERROR(INDEX(PianificazioneEventi[],MATCH(DATEVALUE(ValData)&PianificazioneGiornaliera[[#This Row],[Ora]],CercaDataEOra,0),3),\"\")","v":""}]
[{"$nulls":4},{"$f":"'Intervalli di tempo'!E71","v":""},{"$f":"IFERROR(INDEX(PianificazioneEventi[],MATCH(DATEVALUE(ValData)&PianificazioneGiornaliera[[#This Row],[Ora]],CercaDataEOra,0),3),\"\")","v":""}]
[{"$nulls":4},{"$f":"'Intervalli di tempo'!E72","v":""},{"$f":"IFERROR(INDEX(PianificazioneEventi[],MATCH(DATEVALUE(ValData)&PianificazioneGiornaliera[[#This Row],[Ora]],CercaDataEOra,0),3),\"\")","v":""}]
[{"$nulls":4},{"$f":"'Intervalli di tempo'!E73","v":""},{"$f":"IFERROR(INDEX(PianificazioneEventi[],MATCH(DATEVALUE(ValData)&PianificazioneGiornaliera[[#This Row],[Ora]],CercaDataEOra,0),3),\"\")","v":""}]
[{"$nulls":4},{"$f":"'Intervalli di tempo'!E74","v":""},{"$f":"IFERROR(INDEX(PianificazioneEventi[],MATCH(DATEVALUE(ValData)&PianificazioneGiornaliera[[#This Row],[Ora]],CercaDataEOra,0),3),\"\")","v":""}]
[{"$nulls":4},{"$f":"'Intervalli di tempo'!E75","v":""},{"$f":"IFERROR(INDEX(PianificazioneEventi[],MATCH(DATEVALUE(ValData)&PianificazioneGiornaliera[[#This Row],[Ora]],CercaDataEOra,0),3),\"\")","v":""}]

{"sheet":"Pianificazione eventi","index":1,"n_rows":15,"n_cols":8,"rows_kept":15,"merged":[[1,1,4,2],[5,1,6,2],[7,1,7,2]]}
[null,"Pianificazione eventi"]
[null,{"$f":"DAY(ValData)","v":{"$error":"#VALUE!"}},null,null,"DATA","ORA","DESCRIZIONE","VALORE UNIVOCO (CALCOLATO)"]
[{"$nulls":4},{"$f":"TODAY()","v":"2019-09-06"},"06:00:00","Sveglia",{"$f":"PianificazioneEventi[[#This Row],[DATA]]&\"|\"&COUNTIF($E$3:E3,E3)","v":"43714|1"}]
[{"$nulls":4},{"$f":"TODAY()","v":"2019-09-06"},"06:30:00","Doccia",{"$f":"PianificazioneEventi[[#This Row],[DATA]]&\"|\"&COUNTIF($E$3:E4,E4)","v":"43714|2"}]
[{"$nulls":4},"2019-09-06","07:30:00","Partenza per ufficio",{"$f":"PianificazioneEventi[[#This Row],[DATA]]&\"|\"&COUNTIF($E$3:E5,E5)","v":"43714|3"}]
[null,{"$f":"TEXT(ValData,\"gggg\")","v":" SEPTEMBER FRIDAY"},null,null,"2019-09-06","08:00:00","Inizio turno",{"$f":"PianificazioneEventi[[#This Row],[DATA]]&\"|\"&COUNTIF($E$3:E6,E6)","v":"43714|4"}]
[{"$nulls":4},"2019-09-06","10:00:00","Pausa",{"$f":"PianificazioneEventi[[#This Row],[DATA]]&\"|\"&COUNTIF($E$3:E7,E7)","v":"43714|5"}]
[null,{"$f":"ValData","v":" SEPTEMBER FRIDAY"},null,null,"2019-09-06","12:00:00","Pranzo",{"$f":"PianificazioneEventi[[#This Row],[DATA]]&\"|\"&COUNTIF($E$3:E8,E8)","v":"43714|6"}]
[{"$nulls":4},"2019-09-06","13:00:00","Rientro al lavoro",{"$f":"PianificazioneEventi[[#This Row],[DATA]]&\"|\"&COUNTIF($E$3:E9,E9)","v":"43714|7"}]
[null,"Selezionare per modificare gli intervalli di tempo",null,null,"2019-09-06","13:30:00","Riunione",{"$f":"PianificazioneEventi[[#This Row],[DATA]]&\"|\"&COUNTIF($E$3:E10,E10)","v":"43714|8"}]
[{"$nulls":4},"2019-09-06","15:00:00","Pausa",{"$f":"PianificazioneEventi[[#This Row],[DATA]]&\"|\"&COUNTIF($E$3:E11,E11)","v":"43714|9"}]
[null,"Selezionare per visualizzare la pianificazione giornaliera",null,null,"2019-09-06","17:00:00","Casa",{"$f":"PianificazioneEventi[[#This Row],[DATA]]&\"|\"&COUNTIF($E$3:E12,E12)","v":"43714|10"}]
[{"$nulls":4},"2019-09-06","18:00:00","Allenamento calcio",{"$f":"PianificazioneEventi[[#This Row],[DATA]]&\"|\"&COUNTIF($E$3:E13,E13)","v":"43714|11"}]
[{"$nulls":4},{"$f":"TODAY()+1","v":"2019-09-07"},"06:30:00","Colazione",{"$f":"PianificazioneEventi[[#This Row],[DATA]]&\"|\"&COUNTIF($E$3:E14,E14)","v":"43715|1"}]
[{"$nulls":4},{"$f":"TODAY()+1","v":"2019-09-07"},"07:30:00","Partenza per ufficio",{"$f":"PianificazioneEventi[[#This Row],[DATA]]&\"|\"&COUNTIF($E$3:E15,E15)","v":"43715|2"}]

{"sheet":"Intervalli di tempo","index":2,"n_rows":75,"n_cols":5,"rows_kept":75,"merged":[[1,1,1,2],[9,1,9,2]]}
[null,"Intervalli di tempo"]
[null,"MODIFICA TABELLA ORE",null,null,"Ora"]
[{"$nulls":4},{"$f":"Ora_di_Inizio","v":"06:00:00"}]
[null,"Ora di inizio","06:00:00",null,{"$f":"IFERROR(IF($E3+Incremento>Ora_di_Fine,\"\",$E3+Incremento),\"\")","v":"06:15:00"}]
[{"$nulls":4},"06:30:00"]
[null,"Intervallo","15 MIN",null,"06:45:00"]
[{"$nulls":4},"07:00:00"]
[null,"Ora di fine","21:00:00",null,"07:15:00"]
[{"$nulls":4},"07:30:00"]
[null,"VISUALIZZA PIANIFICAZIONE",null,null,"07:45:00"]
[{"$nulls":4},"08:00:00"]
[null,"Selezionare per visualizzare la pianificazione giornaliera",null,null,"08:15:00"]
[{"$nulls":4},"08:30:00"]
[null,"Selezionare per aggiungere un nuovo evento",null,null,"08:45:00"]
[{"$nulls":4},"09:00:00"]
[{"$nulls":4},"09:15:00"]
[{"$nulls":4},"09:30:00"]
[{"$nulls":4},"09:45:00"]
[{"$nulls":4},"10:00:00"]
[{"$nulls":4},"10:15:00"]
[{"$nulls":4},"10:30:00"]
[{"$nulls":4},"10:45:00"]
[{"$nulls":4},"11:00:00"]
[{"$nulls":4},"11:15:00"]
[{"$nulls":4},"11:30:00"]
[{"$nulls":4},"11:45:00"]
[{"$nulls":4},"12:00:00"]
[{"$nulls":4},"12:15:00"]
[{"$nulls":4},"12:30:00"]
[{"$nulls":4},"12:45:00"]
[{"$nulls":4},"13:00:00"]
[{"$nulls":4},"13:15:00"]
[{"$nulls":4},"13:30:00"]
[{"$nulls":4},"13:45:00"]
[{"$nulls":4},"14:00:00"]
[{"$nulls":4},{"$f":"IFERROR(IF($E35+Incremento>Ora_di_Fine,\"\",$E35+Incremento),\"\")","v":"14:15:00"}]
[{"$nulls":4},"14:30:00"]
[{"$nulls":4},"14:45:00"]
[{"$nulls":4},"15:00:00"]
[{"$nulls":4},"15:15:00"]
[{"$nulls":4},"15:30:00"]
[{"$nulls":4},"15:45:00"]
[{"$nulls":4},"16:00:00"]
[{"$nulls":4},"16:15:00"]
[{"$nulls":4},"16:30:00"]
[{"$nulls":4},"16:45:00"]
[{"$nulls":4},"17:00:00"]
[{"$nulls":4},"17:15:00"]
[{"$nulls":4},"17:30:00"]
[{"$nulls":4},"17:45:00"]
[{"$nulls":4},"18:00:00"]
[{"$nulls":4},"18:15:00"]
[{"$nulls":4},"18:30:00"]
[{"$nulls":4},"18:45:00"]
[{"$nulls":4},"19:00:00"]
[{"$nulls":4},"19:15:00"]
[{"$nulls":4},"19:30:00"]
[{"$nulls":4},"19:45:00"]
[{"$nulls":4},"20:00:00"]
[{"$nulls":4},"20:15:00"]
[{"$nulls":4},"20:30:00"]
[{"$nulls":4},"20:45:00"]
[{"$nulls":4},"21:00:00"]
[{"$nulls":4},""]
[{"$nulls":4},""]
[{"$nulls":4},""]
[{"$nulls":4},""]
[{"$nulls":4},{"$f":"IFERROR(IF($E67+Incremento>Ora_di_Fine,\"\",$E67+Incremento),\"\")","v":""}]
[{"$nulls":4},""]
[{"$nulls":4},""]
[{"$nulls":4},""]
[{"$nulls":4},""]
[{"$nulls":4},""]
[{"$nulls":4},""]
[{"$nulls":4},""]